bitfinex-derivatives/quotes_SOLF0:USTF0_20250224
["timestamp","ask_amount","ask_price","bid_price","bid_amount"]
[1740407707958,7.929e-05,157.8,157.77,11.3258111]
[1740407708157,18.94,157.93,157.77,11.3258111]
[1740407708158,18.94,157.93,157.78,1.916]
[1740407708354,20.7592,157.94,157.78,1.916]
[1740407708766,6.3358,157.82,157.72,1.9199]
[1740407708961,20.7592,157.94,157.84,0.04254783]
[1740407709164,0.04751961,157.88,157.72,1.9199]
[1740407709368,1.8192,157.94,157.73,1.916]
[1740407710367,6.3351,157.83,157.82,0.04266095]
[1740407710569,30.24,157.88,157.73,1.916]
[1740407710773,1.876,157.87,157.72,1.9199]
[1740407711067,18.94,157.85,157.65,1.9863]
[1740407711675,356.96,157.86,157.65,1.9863]
[1740407711867,0.04760289,157.77,157.73,0.04730565]
[1740407712070,6.336,157.81,157.76,6.3379]
[1740407712269,356.96,157.86,157.65,1.9863]
[1740407712469,6.336e-05,157.77,157.73,0.04580744]
[1740407712769,6.3343,157.85,157.71,11.3]
[1740407712972,11.3,157.89,157.72,3.921]
[1740407713171,6.334,157.86,157.72,3.921]
[1740407713374,1.986,157.93,157.73,1.8583]
[1740407713576,0.04534143,157.81,157.77,0.04564106]
[1740407713875,20.926,157.93,157.73,1.8583]
[1740407714874,18.94,157.87,157.78,6.337]
[1740407715076,0.04466643,157.85,157.81,0.04865959]
[1740407715271,18.94,157.91,157.73,1.8583]
[1740407715471,0.04045341,157.85,157.81,0.04540039]
[1740407715777,0.04045341,157.85,157.73,1.8583]
[1740407715976,1.8437,157.9,157.81,0.04634844]
[1740407716280,0.04167653,157.81,157.72,3.921]
[1740407716476,11.3,157.86,157.72,3.921]
[1740407716877,6.334,157.86,157.82,6.3355]
[1740407717074,1.8437,157.9,157.72,3.921]
[1740407717379,0.04861452,157.83,157.79,0.04359476]
[1740407717575,0.04861452,157.83,157.72,3.921]
[1740407717775,1.8437,157.9,157.79,0.04344131]
[1740407717968,6.3331,157.89,157.85,6.3343]
[1740407718177,1.8437,157.9,157.77,1.9]
[1740407718376,0.04680246,157.86,157.83,0.04866038]
[1740407718574,0.04680246,157.86,157.83,6.38346038]
[1740407718778,0.04680246,157.86,157.83,0.04866038]
[1740407719377,6.3347,157.84,157.83,0.04866038]
[1740407719571,0.04680246,157.86,157.72,3.921]
[1740407719776,18.94,157.87,157.72,3.921]
[1740407720080,18.94,157.87,157.72,1.9859]
[1740407720881,0.04079455,157.81,157.78,0.04328594]
[1740407721583,6.37679455,157.81,157.78,0.04328594]
[1740407722085,0.04079455,157.81,157.78,0.04328594]
[1740407723185,6.3363,157.8,157.78,0.04328594]
[1740407723782,25.2767,157.79,157.78,0.04328594]
[1740407723978,18.94,157.79,157.72,1.9859]
[1740407724283,6.3378,157.77,157.73,6.3391]
[1740407724580,18.94,157.79,157.52,45.09911551]
[1740407724786,6.339,157.74,157.7,6.3402]
[1740407725086,18.94,157.81,157.65,3.7515]
[1740407725279,6.3394,157.73,157.7,0.04026875]
[1740407725481,0.04485234,157.74,157.7,0.04026875]
[1740407725682,0.04485234,157.74,157.65,1.8789]
[1740407725884,0.04485234,157.74,157.7,0.0410796]
[1740407726084,6.3399,157.71,157.7,0.0410796]
[1740407726277,0.04485234,157.74,157.7,0.0410796]
[1740407726680,6.3399,157.71,157.7,0.0410796]
[1740407726885,18.94,157.71,157.55,11.3]
[1740407727080,18.94,157.71,157.56,1.9028]
[1740407727684,2.0108,157.73,157.56,1.9028]
[1740407727982,2.176e-05,157.66,157.63,0.04777967]
[1740407728188,2.176e-05,157.66,157.65,6.3424]
[1740407728487,20.7916,157.78,157.64,1.8429]
[1740407728684,18.94,157.76,157.64,1.8429]
[1740407729089,18.94,157.76,157.56,1.9028]
[1740407729285,1.8516,157.78,157.68,0.04182662]
[1740407729286,0.04096459,157.72,157.68,0.04182662]
[1740407729489,18.94,157.74,157.58,1.8429]
[1740407729683,18.94,157.74,157.56,1.9028]
[1740407729987,6.3442,157.61,157.56,6.3459]
[1740407730191,18.94,157.67,157.54,1.9647]
[1740407730486,18.94,157.71,157.54,1.9647]
[1740407730692,6.3417,157.67,157.62,6.3434]
[1740407730892,0.04619841,157.64,157.62,6.3434]
[1740407731691,0.04619841,157.64,157.63,6.3432]
[1740407732287,0.04619841,157.64,157.61,0.04705101]
[1740407732989,0.04619841,157.64,157.55,6.346]
[1740407733291,18.94,157.65,157.52,3.6694]
[1740407733490,22.8641,157.66,157.52,3.6694]
[1740407733891,22.8641,157.66,157.56,6.3459]
[1740407733892,6.3443,157.61,157.56,6.3459]
[1740407734087,0.04288484,157.61,157.57,0.04557281]
[1740407734495,6.3448,157.59,157.57,0.04557281]
[1740407735391,0.04288484,157.61,157.57,0.04557281]
[1740407738094,221.26,157.6,157.46,1.9578]
[1740407738293,18.94,157.58,157.41,1.9611]
[1740407738596,6.3496,157.47,157.4,6.3522]
[1740407738804,18.94,157.54,157.31,11.36]
[1740407739095,0.04861554,157.44,157.41,0.04754738]
[1740407739295,18.94,157.54,157.31,11.36]
[1740407739491,0.04144674,157.44,157.41,0.04220284]
[1740407739793,196.42,157.5,157.31,11.36]
[1740407739995,0.04535346,157.44,157.41,0.0403624]
[1740407740202,6.3516,157.42,157.41,0.0403624]
[1740407740495,0.04535346,157.44,157.31,11.36]
[1740407740696,18.94,157.46,157.31,11.36]
[1740407741100,6.3529,157.39,157.33,6.3552]
[1740407741393,18.94,157.44,157.31,11.36]
[1740407741599,0.04076306,157.38,157.29,3.9556]
[1740407741891,0.04076306,157.38,157.36,0.04562937]
[1740407742086,0.04076306,157.38,157.35,0.04055885]
[1740407742293,6.39416306,157.38,157.35,0.04055885]
[1740407742489,0.04076306,157.38,157.35,0.04055885]
[1740407743597,191.0,157.57,157.35,0.04055885]
[1740407743796,18.94,157.54,157.34,1.9905]
[1740407743993,3.8488,157.56,157.34,1.9905]
[1740407744596,6.3472,157.53,157.45,6.3501]
[1740407744796,0.04590592,157.44,157.4,0.04030127]
[1740407744997,18.94,157.55,157.34,1.9905]
[1740407745197,2.05e-06,157.44,157.4,0.04184537]
[1740407745596,2.05e-06,157.44,157.34,145.30516916]
[1740407745597,6.3477,157.52,157.44,6.3506]
[1740407745798,18.94,157.55,157.34,145.30516916]
[1740407745997,18.94,157.53,157.34,1.9905]
[1740407746199,6.3489,157.49,157.34,1.9905]
[1740407746400,0.04688291,157.45,157.42,0.04336758]
[1740407746595,0.04688291,157.45,157.34,1.9905]
[1740407746802,3.85e-06,157.41,157.38,0.04844994]
[1740407747003,191.0,157.54,157.34,1.9905]
[1740407747203,18.94,157.55,157.34,145.30516916]
[1740407747402,3.8488,157.56,157.34,145.30516916]
[1740407747703,6.3467,157.55,157.48,6.3489]
[1740407748104,0.04115013,157.53,157.5,0.04070552]
[1740407748303,3.8488,157.56,157.34,145.30516916]
[1740407748504,0.04412114,157.53,157.5,0.04575273]
[1740407748700,25.2864,157.55,157.34,145.30516916]
[1740407749000,3.8488,157.56,157.34,145.30516916]
[1740407749202,191.0,157.62,157.43,0.04304105]
[1740407749404,191.0,157.65,157.44,11.44]
[1740407749605,191.0,157.65,157.45,3.8945]
[1740407749805,191.0,157.65,157.45,5.7523]
[1740407750198,18.94,157.64,157.45,5.7523]
[1740407750403,18.94,157.64,157.6,6.3444]
[1740407750604,8.83e-06,157.56,157.45,197.7523]
[1740407750804,3.7568,157.67,157.47,12.699]
[1740407751015,1.9386,157.67,157.47,192.0]
[1740407751201,166.24,157.68,157.48,12.6984]
[1740407751507,166.24,157.68,157.48,192.0]
[1740407751712,3.7568,157.72,157.48,192.0]
[1740407751907,1.735e-05,157.6,157.56,0.04065172]
[1740407752207,3.7568,157.72,157.55,11.44]
[1740407752407,3.7568,157.72,157.56,5.707]
[1740407752604,3.7568,157.72,157.67,6.3412]
[1740407752799,11.44,157.75,157.56,5.707]
[1740407753208,0.04501148,157.71,157.68,6.38182348]
[1740407753506,6.3392,157.73,157.68,6.38775276]
[1740407753702,6.3407,157.7,157.68,0.04675276]
[1740407753907,0.04376822,157.71,157.68,0.04675276]
[1740407754109,0.04376822,157.71,157.56,5.707]
[1740407754304,18.94,157.74,157.56,5.707]
[1740407754511,18.94,157.74,157.56,1.9073]
[1740407754805,11.44,157.75,157.48,11.42]
[1740407754806,18.94,157.72,157.57,6.3454]
[1740407755008,18.94,157.72,157.49,5.707]
[1740407755208,18.94,157.7,157.49,5.707]
[1740407755706,0.0419712,157.61,157.58,0.04218465]
[1740407755902,6.3863712,157.61,157.58,0.04218465]
[1740407756106,11.44,157.66,157.49,5.707]
[1740407756307,0.04314852,157.61,157.58,0.04662133]
[1740407756502,0.04314852,157.61,157.49,5.707]
[1740407756811,0.04176466,157.57,157.53,0.04767308]
[1740407757006,1.983,157.67,157.49,5.707]
[1740407757206,0.04097325,157.57,157.53,0.04364419]
[1740407757413,1.983,157.67,157.49,5.707]
[1740407758313,6.3443,157.61,157.49,5.707]
[1740407758610,0.04324087,157.6,157.56,0.04154204]
[1740407758813,6.3433,157.63,157.58,6.3448]
[1740407759008,0.04327667,157.6,157.58,6.3448]
[1740407759313,0.04327667,157.6,157.59,6.3448]
[1740407760113,7.667e-05,157.6,157.59,6.3448]
[1740407760909,7.667e-05,157.6,157.59,10.1395]
[1740407761706,7.667e-05,157.6,157.59,8.3171]
[1740407761912,7.667e-05,157.6,157.56,0.04050282]
[1740407762411,18.94007667,157.6,157.48,6.3491]
[1740407762607,18.94,157.6,157.45,5.10744452]
[1740407762815,6.3477,157.52,157.45,5.10744452]
[1740407763013,6.3477,157.52,157.45,10.1875]
[1740407763313,6.3484,157.51,157.45,3.8372]
[1740407763512,0.04839745,157.5,157.47,0.04879602]
[1740407764110,191.0,157.59,157.47,0.04879602]
[1740407764303,191.0,157.59,157.45,3.8372]
[1740407764517,6.3461,157.56,157.45,3.8372]
[1740407764707,3.8386,157.61,157.45,3.8372]
[1740407764903,6.3445,157.6,157.45,3.8372]
[1740407765110,1.8856,157.65,157.45,3.8372]
[1740407765314,0.04085277,157.54,157.51,0.04248355]
[1740407765514,0.04085277,157.54,157.52,6.3476]
[1740407765711,1.8856,157.65,157.45,3.8372]
[1740407766014,0.04583811,157.54,157.53,6.3472]
[1740407766211,20.8256,157.65,157.45,3.8372]
[1740407766408,18.94,157.63,157.45,3.8372]
[1740407766613,6.39404194,157.55,157.52,0.04330425]
[1740407766813,1.8856,157.65,157.45,3.8372]
[1740407766814,18.94,157.61,157.45,3.8372]
[1740407767016,0.04212243,157.55,157.52,0.04224397]
[1740407767210,6.3472,157.54,157.52,0.04224397]
[1740407767513,0.04782033,157.55,157.45,1.979]
[1740407767716,11.44,157.57,157.45,1.979]
[1740407768615,0.04282879,157.53,157.49,0.0487821]
[1740407769014,6.3484,157.5,157.49,0.0487821]
[1740407769615,6.3477,157.52,157.49,0.0487821]
[1740407769816,0.04282879,157.53,157.49,0.0487821]
[1740407770412,18.94,157.52,157.49,0.0487821]
[1740407770613,18.94,157.52,157.4,1.8413]
[1740407770910,18.94,157.49,157.4,1.8413]
[1740407771118,18.94,157.54,157.4,1.8413]
[1740407771414,6.3501,157.46,157.42,6.3515]
[1740407771811,6.39265265,157.46,157.42,6.39641385]
[1740407772015,0.04255265,157.46,157.42,0.04491385]
[1740407772317,1.8159,157.56,157.42,0.04491385]
[1740407772512,1.8159,157.56,157.4,1.8413]
[1740407773116,6.3494,157.48,157.4,1.8413]
[1740407773314,0.04804164,157.46,157.42,0.04237881]
[1740407773810,0.04804164,157.46,157.43,6.3509]
[1740407774007,0.04804164,157.46,157.42,0.04237881]
[1740407774618,6.39834164,157.46,157.42,0.04237881]
[1740407774822,0.04804164,157.46,157.42,0.04237881]
[1740407775716,6.3512,157.43,157.42,0.04237881]
[1740407776014,2.0104,157.45,157.38,6.3531]
[1740407776415,6.3513,157.43,157.38,6.3531]
[1740407776615,2.0104,157.45,157.37,6.3535]
[1740407776817,6.3519,157.42,157.37,6.3535]
[1740407777020,6.3519,157.42,157.39,0.04000074]
[1740407777216,0.04460985,157.43,157.39,0.04000074]
[1740407777922,0.04460985,157.43,157.42,6.3516]
[1740407778420,11.44,157.55,157.4,3.8687]
[1740407778620,185.16,157.51,157.4,5.7425]
[1740407778820,6.3487,157.5,157.4,5.7425]
[1740407779421,166.22,157.51,157.4,5.7425]
[1740407779627,11.44,157.55,157.4,5.7425]
[1740407779628,30.38,157.55,157.43,0.04373472]
[1740407779815,0.04341152,157.47,157.4,5.7425]
[1740407780122,11.44,157.55,157.47,0.04003414]
[1740407780323,11.44,157.55,157.4,5.7425]
[1740407780521,6.39356195,157.53,157.49,0.0467144]
[1740407780721,18.94,157.53,157.49,0.0467144]
[1740407780924,18.98367356,157.53,157.49,0.0467144]
[1740407781424,0.04367356,157.53,157.49,0.0467144]
[1740407782622,6.39087356,157.53,157.5,6.3483]
[1740407783020,18.98367356,157.53,157.49,0.0467144]
[1740407783224,18.98367356,157.53,157.4,5.7425]
[1740407783522,18.94,157.53,157.4,5.7425]
[1740407783721,6.3497,157.47,157.43,6.3508]
[1740407783923,18.94,157.51,157.4,1.9134]
[1740407784124,1.9604,157.5,157.4,1.9134]
[1740407784424,0.04654342,157.47,157.44,6.39443515]
[1740407784922,0.04654342,157.47,157.44,0.04373515]
[1740407785323,0.04654342,157.47,157.36,5.8369]
[1740407785324,6.3515,157.43,157.39,6.3527]
[1740407786221,6.3525,157.4,157.36,6.354]
[1740407786421,6.3525,157.4,157.39,0.04709209]
[1740407788024,0.0480645,157.41,157.39,0.04709209]
[1740407788430,0.0480645,157.41,157.4,6.3524]
[1740407788828,0.0480645,157.41,157.39,0.04709209]
[1740407789827,0.0480645,157.41,157.4,6.3524]
[1740407791030,0.0480645,157.41,157.39,6.39989209]
[1740407791227,0.0480645,157.41,157.39,0.04709209]
[1740407791528,6.45e-05,157.41,157.39,0.04709209]
[1740407791731,6.45e-05,157.41,157.4,6.3524]
[1740407793229,6.45e-05,157.41,157.4,8.2698]
[1740407794635,6.45e-05,157.41,157.4,10.2366]
[1740407794931,6.45e-05,157.41,157.4,12.0673]
[1740407799140,1.926,157.63,157.57,6.3452]
[1740407799343,1.926,157.63,157.46,11.32]
[1740407799543,6.3444,157.6,157.46,11.32]
[1740407799943,1.926,157.63,157.46,11.32]
[1740407800243,5.395e-05,157.56,157.53,0.04354099]
[1740407800438,243.66794788,157.66,157.46,203.32]
[1740407800644,6.3427,157.65,157.46,203.32]
[1740407801238,243.66794788,157.66,157.46,203.32]
[1740407801436,0.04603741,157.57,157.54,0.04456422]
[1740407801639,6.3444,157.6,157.46,11.32]
[1740407801836,0.04718179,157.57,157.54,0.04534547]
[1740407802339,0.04718179,157.57,157.56,6.346]
[1740407802547,191.0,157.66,157.55,2.0122]
[1740407802749,1.9091,157.67,157.55,5.8356]
[1740407802944,1.9091,157.67,157.6,6.3441]
[1740407803145,1.9091,157.67,157.55,5.8356]
[1740407803744,0.04164728,157.63,157.59,0.04350926]
[1740407804350,6.3444,157.6,157.59,0.04350926]
[1740407804552,2.0072,157.62,157.47,3.8563]
[1740407804847,13.3272,157.62,157.47,3.8563]
[1740407805037,13.3272,157.62,157.47,1.9942]
[1740407805244,185.16,157.61,157.41,1.8621]
[1740407805552,0.04647642,157.53,157.49,0.04520371]
[1740407805746,191.0,157.6,157.41,3.8563]
[1740407806052,0.04306562,157.53,157.49,0.04407655]
[1740407806447,191.0,157.59,157.49,0.04064352]
[1740407806640,0.04222963,157.53,157.49,0.04064352]
[1740407806846,0.04222963,157.53,157.41,3.8563]
[1740407807152,191.0,157.59,157.41,3.8563]
[1740407807351,9.179e-05,157.49,157.45,0.04267863]
[1740407807551,191.0,157.59,157.48,6.3492]
[1740407807747,191.0,157.58,157.42,1.837]
[1740407808053,6.3479,157.52,157.42,1.837]
[1740407808247,191.0,157.57,157.42,1.837]
[1740407808453,0.04463622,157.49,157.45,0.04866723]
[1740407808657,6.3482,157.51,157.47,6.3495]
[1740407808853,0.04882478,157.49,157.45,0.04473665]
[1740407809058,0.04882478,157.49,157.42,1.837]
[1740407809257,0.04882478,157.49,157.45,0.04491483]
[1740407810260,6.3497,157.47,157.45,0.04491483]
[1740407810653,0.04882478,157.49,157.45,0.04491483]
[1740407810952,6.35,157.46,157.45,0.04491483]
[1740407811260,0.04882478,157.49,157.45,0.04491483]
[1740407811658,6.3497,157.47,157.45,0.04491483]
[1740407812360,6.35,157.46,157.45,0.04491483]
[1740407813156,0.04882478,157.49,157.41,6.3519]
[1740407813362,6.3515,157.43,157.3,5.7296]
[1740407813562,18.94,157.51,157.3,5.7296]
[1740407813862,6.3517,157.42,157.3,5.7296]
[1740407814157,18.94,157.49,157.3,5.7296]
[1740407814358,18.94,157.47,157.37,6.3533]
[1740407814560,0.04476785,157.38,157.37,6.3533]
[1740407814753,6.3527,157.4,157.3,5.7296]
[1740407814967,0.04497221,157.39,157.36,0.04414541]
[1740407815152,1.8773,157.46,157.3,5.7296]
[1740407815358,0.04752179,157.39,157.36,0.04588387]
[1740407815559,0.04752179,157.39,157.3,5.7296]
[1740407815560,1.8773,157.46,157.3,5.7296]
[1740407815755,0.04537743,157.39,157.36,0.04381927]
[1740407816162,0.04563589,157.39,157.37,6.3533]
[1740407816563,0.04563589,157.39,157.36,0.04282829]
[1740407816759,0.04563589,157.39,157.36,6.39682829]
[1740407817066,0.04563589,157.39,157.36,0.04282829]
[1740407817463,0.04563589,157.39,157.37,6.3533]
[1740407818070,0.04563589,157.39,157.38,6.3532]
[1740407819464,11.22,157.5,157.43,6.3511]
[1740407819680,166.28,157.48,157.43,6.3511]
[1740407820063,166.28,157.48,157.3,5.7296]
[1740407820064,172.6296,157.48,157.3,5.7296]
[1740407820260,185.22,157.48,157.32,12.7108]
[1740407820466,0.04589216,157.41,157.37,0.04519282]
[1740407820663,0.04589216,157.41,157.32,12.7108]
[1740407820865,0.04589216,157.41,157.37,0.04437384]
[1740407821060,1.8199,157.45,157.37,0.04437384]
[1740407821267,0.04163287,157.41,157.4,6.352]
[1740407821665,0.04163287,157.41,157.39,0.04747056]
[1740407821862,25.2924,157.41,157.37,6.3533]
[1740407822067,18.94,157.41,157.38,0.04175351]
[1740407822262,25.2927,157.4,157.36,6.354]
[1740407822564,18.94,157.4,157.38,0.04244623]
[1740407822767,18.94,157.38,157.16,11.22]
[1740407822967,25.2956,157.33,157.28,6.3569]
[1740407823367,6.3556,157.33,157.28,6.3569]
[1740407823567,191.0,157.38,157.17,3.8299]
[1740407823965,4.923e-05,157.29,157.26,0.04184427]
[1740407824166,1.8939,157.39,157.25,11.22]
[1740407824367,1.8939,157.39,157.26,3.8299]
[1740407824571,191.0,157.45,157.26,5.6571]
[1740407824768,6.3513,157.43,157.38,6.3531]
[1740407825071,0.0413475,157.42,157.39,0.04814252]
[1740407825280,1.8939,157.44,157.26,5.6571]
[1740407825770,6.3517,157.42,157.38,6.3531]
[1740407825972,1.8939,157.44,157.26,5.6571]
[1740407826174,191.0,157.45,157.26,5.6571]
[1740407826373,8.92e-05,157.37,157.33,0.04263396]
[1740407826577,191.0,157.45,157.27,12.7153]
[1740407827168,209.94,157.45,157.27,12.7153]
[1740407827378,1.9626,157.44,157.27,12.7153]
[1740407827675,0.04751209,157.38,157.37,6.3535]
[1740407827874,1.9626,157.44,157.27,12.7153]
[1740407828087,0.04725763,157.39,157.36,0.04125194]
[1740407828579,6.3499,157.47,157.43,6.3512]
[1740407828979,0.04453633,157.47,157.43,0.04511991]
[1740407829774,0.04453633,157.47,157.44,6.3507]
[1740407830170,0.04453633,157.47,157.43,0.04511991]
[1740407831075,0.04453633,157.47,157.45,6.3503]
[1740407831473,0.04453633,157.47,157.43,0.04511991]
[1740407832578,6.39413633,157.47,157.43,0.04511991]
[1740407832878,0.04453633,157.47,157.43,0.04511991]
[1740407833778,6.3508,157.44,157.43,0.04511991]
[1740407833979,0.04453633,157.47,157.43,0.04511991]
[1740407835476,0.04453633,157.47,157.46,6.35]
[1740407835780,0.04453633,157.47,157.43,0.04511991]
[1740407835975,6.39413633,157.47,157.43,6.39601991]
[1740407836272,0.04453633,157.47,157.43,0.04511991]
[1740407836678,0.04453633,157.47,157.46,6.35]
[1740407837481,0.04453633,157.47,157.43,0.04511991]
[1740407839578,0.04453633,157.47,157.46,6.35]
[1740407840283,3.633e-05,157.47,157.46,6.35]
[1740407842291,3.633e-05,157.47,157.46,8.3583]
[1740407842679,192.8251,157.67,157.46,2.0083]
[1740407842881,6.3422,157.66,157.46,2.0083]
[1740407843086,1.9512,157.69,157.46,194.0083]
[1740407843282,1.9512,157.69,157.47,12.6989]
[1740407843481,20.8912,157.69,157.47,12.6989]
[1740407843685,1.9512,157.69,157.47,12.6989]
[1740407843986,6.3434,157.63,157.56,0.04081843]
[1740407844189,1.9512,157.69,157.46,194.0083]
[1740407844380,1.9512,157.69,157.58,0.0479676]
[1740407844582,1.9512,157.69,157.51,11.18]
[1740407844786,1.9512,157.69,157.62,0.04253263]
[1740407844980,1.9512,157.69,157.51,11.18]
[1740407845181,192.875,157.72,157.51,11.18]
[1740407845389,192.875,157.72,157.58,0.04448128]
[1740407845587,6.3403,157.71,157.51,203.18]
[1740407845786,6.3403,157.71,157.63,0.04672592]
[1740407845988,1.875,157.72,157.51,203.18]
[1740407846188,1.875,157.72,157.65,0.0444409]
[1740407846386,1.875,157.72,157.61,6.3439]
[1740407846586,1.875,157.72,157.67,0.04604648]
[1740407846879,20.8419,157.75,157.51,203.18]
[1740407847085,22.7057,157.75,157.68,0.04379908]
[1740407847285,6.3418,157.67,157.61,0.04514816]
[1740407847486,22.7057,157.75,157.51,203.18]
[1740407847683,22.7057,157.75,157.62,0.04227652]
[1740407847890,22.7057,157.75,157.48,11.18]
[1740407848089,22.7057,157.75,157.67,7.141e-05]
[1740407848386,22.7057,157.75,157.48,11.18]
[1740407849093,18.94,157.73,157.48,11.18]
[1740407849289,6.344,157.61,157.6,0.04535297]
[1740407849483,11.22091305,157.63,157.46,2.0083]
[1740407849687,11.22091305,157.63,157.53,6.3469]
[1740407849688,30.12,157.63,157.53,6.3469]
[1740407849888,1.8704,157.62,157.46,2.0083]
[1740407850089,1.8704,157.62,157.52,6.3472]
[1740407850594,0.0404759,157.59,157.55,0.043331]
[1740407850893,11.18,157.67,157.55,0.043331]
[1740407851089,0.04734671,157.59,157.55,0.043331]
[1740407851297,20.8104,157.66,157.59,0.04307163]
[1740407851493,6.3428,157.64,157.46,2.0083]
[1740407851689,0.04603817,157.64,157.61,0.04510564]
[1740407851886,0.04035815,157.64,157.61,6.3436]
[1740407852086,0.04035815,157.64,157.61,0.04827966]
[1740407854098,0.04035815,157.64,157.62,6.3435]
[1740407854495,0.04035815,157.64,157.61,0.04827966]
[1740407854694,6.3401,157.71,157.66,6.3416]
[1740407855202,6.3397,157.72,157.53,3.9096]
[1740407855594,6.3397,157.72,157.54,12.6936]
[1740407855796,0.04116659,157.64,157.61,0.04520255]
[1740407856095,19.05,157.71,157.54,23.8736]
[1740407856295,19.05,157.71,157.63,6.3432]
[1740407856296,0.04461928,157.64,157.63,6.3432]
[1740407856496,6.3414,157.68,157.63,6.3432]
[1740407856797,0.04883751,157.65,157.62,0.04801709]
[1740407856994,19.05,157.71,157.64,6.3427]
[1740407857197,0.04529291,157.65,157.62,0.04390983]
[1740407857396,19.05,157.71,157.53,3.9096]
[1740407857598,0.0423039,157.65,157.62,0.04793799]
[1740407858597,6.3849039,157.65,157.62,0.04793799]
[1740407859199,0.0423039,157.65,157.62,0.04793799]
[1740407860294,6.3432,157.63,157.62,0.04793799]
[1740407860901,6.3849039,157.65,157.62,0.04793799]
[1740407861195,0.0423039,157.65,157.62,0.04793799]
[1740407861999,6.3431,157.64,157.62,0.04793799]
[1740407862302,0.0423039,157.65,157.54,2.004]
[1740407862496,1.8937,157.66,157.54,2.004]
[1740407862805,1.8937,157.66,157.56,6.3458]
[1740407862998,1.8937,157.66,157.54,2.004]
[1740407863197,6.3456,157.58,157.53,6.3469]
[1740407863394,1.8937,157.66,157.53,6.3469]
[1740407863395,11.18620899,157.62,157.53,6.3469]
[1740407863600,19.05,157.61,157.54,0.04111123]
[1740407863801,6.3462,157.56,157.54,0.04111123]
[1740407864103,0.0420797,157.59,157.54,0.04111123]
[1740407864492,6.3869797,157.59,157.54,0.04111123]
[1740407864693,0.0420797,157.59,157.54,0.04111123]
[1740407865504,19.05,157.57,157.43,1.9829]
[1740407865700,1.9829,157.56,157.43,1.9829]
[1740407866297,6.3469,157.54,157.5,6.3483]
[1740407866599,191.0,157.58,157.43,1.9829]
[1740407866800,0.04170233,157.54,157.5,0.04650922]
[1740407867000,13.1229,157.62,157.43,1.9829]
[1740407867203,0.04849733,157.54,157.5,0.04794868]
[1740407867398,6.3447,157.6,157.55,6.3464]
[1740407867701,0.041358,157.54,157.5,0.04538242]
[1740407867907,32.1729,157.62,157.43,1.9829]
[1740407868099,6.57e-05,157.54,157.5,0.04250407]
[1740407868303,1.9829,157.62,157.43,1.9829]
[1740407868304,1.9829,157.62,157.46,11.14]
[1740407868907,8.3268,157.62,157.46,11.14]
[1740407869107,27.3768,157.62,157.46,11.14]
[1740407869313,0.04027975,157.56,157.52,0.04548384]
[1740407869604,0.04027975,157.56,157.55,6.346]
[1740407869802,19.05,157.62,157.52,0.04217668]
[1740407870003,0.04480583,157.57,157.56,6.346]
[1740407870306,166.12,157.63,157.55,0.04412066]
[1740407870513,0.04812969,157.58,157.57,6.3456]
[1740407870902,166.12,157.63,157.57,0.04700444]
[1740407871099,8.043e-05,157.59,157.58,6.3452]
[1740407871508,357.14,157.72,157.58,1.8609]
[1740407871509,20.9975,157.71,157.58,1.8609]
[1740407872304,0.04536951,157.66,157.63,0.0403343]
[1740407872905,19.05,157.64,157.49,1.8609]
[1740407873109,19.05,157.62,157.49,1.8609]
[1740407873510,11.12,157.65,157.5,12.6966]
[1740407873905,11.12,157.65,157.51,1.9488]
[1740407874215,11.12,157.65,157.56,0.0405611]
[1740407874216,0.0420781,157.59,157.56,0.0405611]
[1740407874808,19.05,157.57,157.49,1.8609]
[1740407875010,19.05,157.57,157.47,1.9488]
[1740407875209,191.0,157.58,157.47,1.9488]
[1740407875412,6.3466,157.55,157.51,6.3479]
[1740407875601,210.05,157.58,157.47,1.9488]